{"text_format":"1","workbook":"xlsx","n_sheets":3,"sheets":["Detailer Target","Detailing List","Response Fields"],"not_rendered":{"charts":0,"images":0,"macros":1,"external_links":0,"defined_names":5,"comments":0,"pivot_tables":0},"unopened":[],"bounds":{"document_bytes":16777216,"sheet_cells":100000,"rows_first":2000,"rows_last":500,"rows_between":2000,"halvings":0,"cell_chars":16384,"cell_head_chars":4096},"cells_cut":0,"cells_raw":0,"read":"whole","date_system":"1900"}

{"sheet":"Detailer Target","index":0,"n_rows":9,"n_cols":13,"rows_kept":9,"cut":false,"hidden":false,"merged":[[2,10,2,12],[2,0,3,0],[2,1,2,3],[2,4,2,6],[2,7,2,9]]}
["Detailer monthly targets"]
["Please indicate monthly targets for each first and follow up visit"]
["Detailer","April",null,null,"May",null,null,"June",null,null,"July"]
[null,"First visit","Follow up visit","Total visits","First visit","Follow up visit","Total visits","First visit","Follow up visit","Total visits","First visit","Follow up visit","Total visits"]
["Carol",null,null,{"$f":"C5+B5","v":0},null,null,{"$f":"F5+E5","v":0},null,null,{"$f":"I5+H5","v":0},null,null,{"$f":"L5+K5","v":0}]
["Jill",null,null,{"$f":"C6+B6","v":0},null,null,{"$f":"F6+E6","v":0},null,null,{"$f":"I6+H6","v":0},null,null,{"$f":"L6+K6","v":0}]
["Katie",null,null,0,null,null,0,null,null,0,null,null,0]
["Lars",null,null,0,null,null,0,null,null,0,null,null,0]
["Victoria ",null,null,0,null,null,0,null,null,0,null,null,0]

{"sheet":"Detailing List","index":1,"n_rows":175,"n_cols":57,"rows_kept":175,"cut":false,"hidden":false,"merged":[[3,3,4,3],[3,39,4,39],[1,37,2,45],[3,51,4,51],[1,49,2,56],[3,41,4,41],[3,40,4,40],[3,52,4,52],[3,53,4,53],[3,35,4,35],[3,10,3,13],[3,15,3,17],[3,18,3,20],[3,21,3,23],[3,24,3,26],[3,27,3,29]]}
["Tracking List",null,null,null,null,null,null,null,null,null,null,null,null,null,null,null,null,null,null,null,null,null,null,null,null,null,null,null,null,null,null,null,null,null,null,null,null,"Topics:"]
["Please work through the list in order",null,null,null,null,null,null,null,null,null,null,null,null,null,null,null,null,null,null,null,null,null,null,null,null,null,null,null,null,null,null,null,null,null,null,null,null,"(1) Offer Treatment for Opioid Use Disorder (OUD), including MAT, (2) Get Waivered to Prescribe Suboxone, (3) Use Non-Opioid Treatment, (4) If Opioids Must be Prescribed, Start Low, (5) Review the State PDMP, (6) Behavioral Health Services, (7) Stigma Around MAT and SUD Treatments, (8) OTHER TOPIC "]
[null,null,null,null,null,null,null,null,null,null,null,null,null,null,null,"Please enter up to five contacts attempts",null,null,null,null,null,null,null,null,null,null,null,null,null,null,null,"Please enter the date, time, and place"]
[null,null,null,"Assigned\nDetailer\n(opitonal)","Contact Information",null,null,null,null,null,"Please complete if known",null,null,null,"Contact \nAttempts","Contact #1",null,null,"Contact #2",null,null,"Contact #3",null,null,"Contact #4",null,null,"Contact #5",null,null,"Scheduled Detailing",null,null,null,null,"Detailer \n(if different from assigned)","Post\nVisit",null,null,"Number of Detailees\n(If more than 1, please add to list)","Length of Visit \n(minutes)","Topics Covered\n(Use topic listed above)",null,null,null,null,null,null,"Follow Up",null,null,"Number of Detailees\n(If more than 1, please add to list)","Length of Visit \n(minutes)","Topics Covered\n(Use topic listed above)"]
["Number","Name (Last, First)","Degree",null,null,"Address","City","County","State","Zip Code","Telephone","Email","Specialty","Clinic",null,"Date","Method","Result","Date","Method","Result","Date","Method","Result","Date","Method","Result","Date","Method","Result",null,"Scheduled","Date ","Time","Location",null,null,"Appointment Occurred","Detailer",null,null,null,"Issues/Concerns","Questions","Notes","If follow up, date","Follow-up Time","Follow-up Location",null,"Appointment Occurred","Detailer",null,null,null,"Issues/Concerns","Questions","Notes"]
["Example","Jane Doe (Example)","MD","Jones",null,"1234 Opioid Lane","Clearlake","Lake","CA",95422,8885551234,"jane.doe@clinic.org","Familiy Medicine","Lake County Health Clinic",{"$f":"IF(COUNT(P6,S6,V6,Y6,AB6)=0,\"\",COUNT(P6,S6,V6,Y6,AB6))","v":2},"2017-04-21","telephone","phone - left voicemail","2017-04-25","email","phone - spoke to provider",null,null,null,null,null,null,null,null,null,{"$f":"IF(AG6=0,\" \",AG6)","v":"2017-04-28"},"Yes","2017-04-28","13:00:00","Lake County Clinic","Jones",{"$f":"IF(AL6=0,\" \",AL6)","v":"Yes"},"Yes","Jones",1,30,"1,2,5","None",null,"Positive encounter, very open to suggestions","2017-07-28","1:00PM","Same place",{"$f":"IF(AT6=0,\" \",AT6)","v":"2017-07-28"},"No"]
[1,null,null,null,null,null,null,"SHASTA","CA","96002",null,null,null,null,{"$f":"IF(COUNT(P7,S7,V7,Y7,AB7)=0,\"\",COUNT(P7,S7,V7,Y7,AB7))","v":""},null,null,null,null,null,null,null,null,null,null,null,null,null,null,null,{"$f":"IF(AG7=0,\" \",AG7)","v":" "},"No",null,null,null,null,{"$f":"IF(AL7=0,\" \",AL7)","v":" "},null,null,null,null,null,null,null,null,null,null,null,{"$f":"IF(AT7=0,\" \",AT7)","v":" "}]
[2,null,null,null,null,null,null,"SHASTA","CA","96001",null,null,null,null,{"$f":"IF(COUNT(P8,S8,V8,Y8,AB8)=0,\"\",COUNT(P8,S8,V8,Y8,AB8))","v":""},null,null,null,null,null,null,null,null,null,null,null,null,null,null,null,{"$f":"IF(AG8=0,\" \",AG8)","v":" "},"No",null,null,null,null,null,null,null,null,null,null,null,null,null,null,null,null,{"$f":"IF(AT8=0,\" \",AT8)","v":" "}]
[3,null,null,null,null,null,null,"SHASTA","CA","96001",null,null,null,null,"",null,null,null,null,null,null,null,null,null,null,null,null,null,null,null," ","No",null,null,null,null,null,null,null,null,null,null,null,null,null,null,null,null," "]
[4,null,null,null,null,null,null,"SHASTA","CA","96001",null,null,null,null,"",null,null,null,null,null,null,null,null,null,null,null,null,null,null,null," ","No",null,null,null,null,null,null,null,null,null,null,null,null,null,null,null,null," "]
[5,null,null,null,null,null,null,"SHASTA","CA","96001",null,null,null,null,"",null,null,null,null,null,null,null,null,null,null,null,null,null,null,null," ","No",null,null,null,null,null,null,null,null,null,null,null,null,null,null,null,null," "]
[6,null,null,null,null,null,null,"SHASTA","CA","96002",null,null,null,null,"",null,null,null,null,null,null,null,null,null,null,null,null,null,null,null," ","No",null,null,null,null,null,null,null,null,null,null,null,null,null,null,null,null," "]
[7,null,null,null,null,null,null,"SHASTA","CA","96001",null,null,null,null,"",null,null,null,null,null,null,null,null,null,null,null,null,null,null,null," ","No",null,null,null,null,null,null,null,null,null,null,null,null,null,null,null,null," "]
[8,null,null,null,null,null,null,"SHASTA","CA","96001",null,null,null,null,"",null,null,null,null,null,null,null,null,null,null,null,null,null,null,null," ","No",null,null,null,null,null,null,null,null,null,null,null,null,null,null,null,null," "]
[9,null,null,null,null,null,null,"SHASTA","CA","96002",null,null,null,null,"",null,null,null,null,null,null,null,null,null,null,null,null,null,null,null," ","No",null,null,null,null,null,null,null,null,null,null,null,null,null,null,null,null," "]
[10,null,null,null,null,null,null,"SHASTA","CA","96001",null,null,null,null,"",null,null,null,null,null,null,null,null,null,null,null,null,null,null,null," ","No",null,null,null,null,null,null,null,null,null,null,null,null,null,null,null,null," "]
[11,null,null,null,null,null,null,"SHASTA","CA","96001",null,null,null,null,"",null,null,null,null,null,null,null,null,null,null,null,null,null,null,null," ","No",null,null,null,null,null,null,null,null,null,null,null,null,null,null,null,null," "]
[12,null,null,null,null,null,null,"SHASTA","CA","96001",null,null,null,null,"",null,null,null,null,null,null,null,null,null,null,null,null,null,null,null," ","No",null,null,null,null,null,null,null,null,null,null,null,null,null,null,null,null," "]
[13,null,null,null,null,null,null,"SHASTA","CA","96001",null,null,null,null,"",null,null,null,null,null,null,null,null,null,null,null,null,null,null,null," ","No",null,null,null,null,null,null,null,null,null,null,null,null,null,null,null,null," "]
[14,null,null,null,null,null,null,"SHASTA","CA","96001",null,null,null,null,"",null,null,null,null,null,null,null,null,null,null,null,null,null,null,null," ","No",null,null,null,null,null,null,null,null,null,null,null,null,null,null,null,null," "]
[15,null,null,null,null,null,null,"SHASTA","CA","96013",null,null,null,null,"",null,null,null,null,null,null,null,null,null,null,null,null,null,null,null," ","No",null,null,null,null,null,null,null,null,null,null,null,null,null,null,null,null," "]
[16,null,null,null,null,null,null,"SHASTA","CA","96002",null,null,null,null,"",null,null,null,null,null,null,null,null,null,null,null,null,null,null,null," ","No",null,null,null,null,null,null,null,null,null,null,null,null,null,null,null,null," "]
[17,null,null,null,null,null,null,"SHASTA","CA","96002",null,null,null,null,"",null,null,null,null,null,null,null,null,null,null,null,null,null,null,null," ","No",null,null,null,null,null,null,null,null,null,null,null,null,null,null,null,null," "]
[18,null,null,null,null,null,null,"SHASTA","CA","96002",null,null,null,null,"",null,null,null,null,null,null,null,null,null,null,null,null,null,null,null," ","No",null,null,null,null,null,null,null,null,null,null,null,null,null,null,null,null," "]
[19,null,null,null,null,null,null,"SHASTA","CA","96001",null,null,null,null,"",null,null,null,null,null,null,null,null,null,null,null,null,null,null,null," ","No",null,null,null,null,null,null,null,null,null,null,null,null,null,null,null,null," "]
[20,null,null,null,null,null,null,"SHASTA","CA","96001",null,null,null,null,"",null,null,null,null,null,null,null,null,null,null,null,null,null,null,null," ","No",null,null,null,null,null,null,null,null,null,null,null,null,null,null,null,null," "]
[21,null,null,null,null,null,null,"SHASTA","CA","96001",null,null,null,null,"",null,null,null,null,null,null,null,null,null,null,null,null,null,null,null," ","No",null,null,null,null,null,null,null,null,null,null,null,null,null,null,null,null," "]
[22,null,null,null,null,null,null,"SHASTA","CA","96001",null,null,null,null,"",null,null,null,null,null,null,null,null,null,null,null,null,null,null,null," ","No",null,null,null,null,null,null,null,null,null,null,null,null,null,null,null,null," "]
[23,null,null,null,null,null,null,"SHASTA","CA","96007",null,null,null,null,"",null,null,null,null,null,null,null,null,null,null,null,null,null,null,null," ","No",null,null,null,null,null,null,null,null,null,null,null,null,null,null,null,null," "]
[24,null,null,null,null,null,null,"SHASTA","CA","96001",null,null,null,null,"",null,null,null,null,null,null,null,null,null,null,null,null,null,null,null," ","No",null,null,null,null,null,null,null,null,null,null,null,null,null,null,null,null," "]
[25,null,null,null,null,null,null,"SHASTA","CA","96001",null,null,null,null,"",null,null,null,null,null,null,null,null,null,null,null,null,null,null,null," ","No",null,null,null,null,null,null,null,null,null,null,null,null,null,null,null,null," "]
[26,null,null,null,null,null,null,"SHASTA","CA","96019",null,null,null,null,"",null,null,null,null,null,null,null,null,null,null,null,null,null,null,null," ","No",null,null,null,null,null,null,null,null,null,null,null,null,null,null,null,null," "]
[27,null,null,null,null,null,null,"SHASTA","CA","96007",null,null,null,null,"",null,null,null,null,null,null,null,null,null,null,null,null,null,null,null," ","No",null,null,null,null,null,null,null,null,null,null,null,null,null,null,null,null," "]
[28,null,null,null,null,null,null,"SHASTA","CA","96001",null,null,null,null,"",null,null,null,null,null,null,null,null,null,null,null,null,null,null,null," ","No",null,null,null,null,null,null,null,null,null,null,null,null,null,null,null,null," "]
[29,null,null,null,null,null,null,"SHASTA","CA","96022",null,null,null,null,"",null,null,null,null,null,null,null,null,null,null,null,null,null,null,null," ","No",null,null,null,null,null,null,null,null,null,null,null,null,null,null,null,null," "]
[30,null,null,null,null,null,null,"SHASTA","CA","96001",null,null,null,null,"",null,null,null,null,null,null,null,null,null,null,null,null,null,null,null," ","No",null,null,null,null,null,null,null,null,null,null,null,null,null,null,null,null," "]
[31,null,null,null,null,null,null,"SHASTA","CA","96001",null,null,null,null,"",null,null,null,null,null,null,null,null,null,null,null,null,null,null,null," ","No",null,null,null,null,null,null,null,null,null,null,null,null,null,null,null,null," "]
[32,null,null,null,null,null,null,"SHASTA","CA","96001",null,null,null,null,"",null,null,null,null,null,null,null,null,null,null,null,null,null,null,null," ","No",null,null,null,null,null,null,null,null,null,null,null,null,null,null,null,null," "]
[33,null,null,null,null,null,null,"SHASTA","CA","96001",null,null,null,null,"",null,null,null,null,null,null,null,null,null,null,null,null,null,null,null," ","No",null,null,null,null,null,null,null,null,null,null,null,null,null,null,null,null," "]
[34,null,null,null,null,null,null,"SHASTA","CA","96084",null,null,null,null,"",null,null,null,null,null,null,null,null,null,null,null,null,null,null,null," ","No",null,null,null,null,null,null,null,null,null,null,null,null,null,null,null,null," "]
[35,null,null,null,null,null,null,"SHASTA","CA","96001",null,null,null,null,"",null,null,null,null,null,null,null,null,null,null,null,null,null,null,null," ","No",null,null,null,null,null,null,null,null,null,null,null,null,null,null,null,null," "]
[36,null,null,null,null,null,null,"SHASTA","CA","96001",null,null,null,null,"",null,null,null,null,null,null,null,null,null,null,null,null,null,null,null," ","No",null,null,null,null,null,null,null,null,null,null,null,null,null,null,null,null," "]
[37,null,null,null,null,null,null,"SHASTA","CA","96001",null,null,null,null,"",null,null,null,null,null,null,null,null,null,null,null,null,null,null,null," ","No",null,null,null,null,null,null,null,null,null,null,null,null,null,null,null,null," "]
[38,null,null,null,null,null,null,"SHASTA","CA","96003",null,null,null,null,"",null,null,null,null,null,null,null,null,null,null,null,null,null,null,null," ","No",null,null,null,null,null,null,null,null,null,null,null,null,null,null,null,null," "]
[39,null,null,null,null,null,null,"SHASTA","CA","96001",null,null,null,null,"",null,null,null,null,null,null,null,null,null,null,null,null,null,null,null," ","No",null,null,null,null,null,null,null,null,null,null,null,null,null,null,null,null," "]
[40,null,null,null,null,null,null,"SHASTA","OR","97756",null,null,null,null,"",null,null,null,null,null,null,null,null,null,null,null,null,null,null,null," ","No",null,null,null,null,null,null,null,null,null,null,null,null,null,null,null,null," "]
[41,null,null,null,null,null,null,"SHASTA","CA","96002",null,null,null,null,"",null,null,null,null,null,null,null,null,null,null,null,null,null,null,null," ","No",null,null,null,null,null,null,null,null,null,null,null,null,null,null,null,null," "]
[42,null,null,null,null,null,null,"SHASTA","CA","96001",null,null,null,null,"",null,null,null,null,null,null,null,null,null,null,null,null,null,null,null," ","No",null,null,null,null,null,null,null,null,null,null,null,null,null,null,null,null," "]
[43,null,null,null,null,null,null,"SHASTA","CA","96001",null,null,null,null,"",null,null,null,null,null,null,null,null,null,null,null,null,null,null,null," ","No",null,null,null,null,null,null,null,null,null,null,null,null,null,null,null,null," "]
[44,null,null,null,null,null,null,"SHASTA","CA","96001",null,null,null,null,"",null,null,null,null,null,null,null,null,null,null,null,null,null,null,null," ","No",null,null,null,null,null,null,null,null,null,null,null,null,null,null,null,null," "]
[45,null,null,null,null,null,null,"SHASTA","CA","96001",null,null,null,null,"",null,null,null,null,null,null,null,null,null,null,null,null,null,null,null," ","No",null,null,null,null,null,null,null,null,null,null,null,null,null,null,null,null," "]
[46,null,null,null,null,null,null,"SHASTA","CA","96099",null,null,null,null,"",null,null,null,null,null,null,null,null,null,null,null,null,null,null,null," ","No",null,null,null,null,null,null,null,null,null,null,null,null,null,null,null,null," "]
[47,null,null,null,null,null,null,"SHASTA","CA","96001",null,null,null,null,"",null,null,null,null,null,null,null,null,null,null,null,null,null,null,null," ","No",null,null,null,null,null,null,null,null,null,null,null,null,null,null,null,null," "]
[48,null,null,null,null,null,null,"SHASTA","CA","96001",null,null,null,null,"",null,null,null,null,null,null,null,null,null,null,null,null,null,null,null," ","No",null,null,null,null,null,null,null,null,null,null,null,null,null,null,null,null," "]
[49,null,null,null,null,null,null,"SHASTA","CA","96001",null,null,null,null,"",null,null,null,null,null,null,null,null,null,null,null,null,null,null,null," ","No",null,null,null,null,null,null,null,null,null,null,null,null,null,null,null,null," "]
[50,null,null,null,null,null,null,"SHASTA","CA","96001",null,null,null,null,"",null,null,null,null,null,null,null,null,null,null,null,null,null,null,null," ","No",null,null,null,null,null,null,null,null,null,null,null,null,null,null,null,null," "]
[51,null,null,null,null,null,null,"SHASTA","CA","96001",null,null,null,null,"",null,null,null,null,null,null,null,null,null,null,null,null,null,null,null," ",null,null,null,null,null,null,null,null,null,null,null,null,null,null,null,null,null," "]
[52,null,null,null,null,null,null,"SHASTA","CA","96001",null,null,null,null,"",null,null,null,null,null,null,null,null,null,null,null,null,null,null,null," ",null,null,null,null,null,null,null,null,null,null,null,null,null,null,null,null,null," "]
[53,null,null,null,null,null,null,"SHASTA","CA","96001",null,null,null,null,"",null,null,null,null,null,null,null,null,null,null,null,null,null,null,null," ",null,null,null,null,null,null,null,null,null,null,null,null,null,null,null,null,null," "]
[54,null,null,null,null,null,null,"SHASTA","CA","96001",null,null,null,null,"",null,null,null,null,null,null,null,null,null,null,null,null,null,null,null," ",null,null,null,null,null,null,null,null,null,null,null,null,null,null,null,null,null," "]
[55,null,null,null,null,null,null,"SHASTA","CA","96001",null,null,null,null,"",null,null,null,null,null,null,null,null,null,null,null,null,null,null,null," ",null,null,null,null,null,null,null,null,null,null,null,null,null,null,null,null,null," "]
[56,null,null,null,null,null,null,"SHASTA","CA","96002",null,null,null,null,"",null,null,null,null,null,null,null,null,null,null,null,null,null,null,null," ",null,null,null,null,null,null,null,null,null,null,null,null,null,null,null,null,null," "]
[57,null,null,null,null,null,null,"SHASTA","CA","96001",null,null,null,null,"",null,null,null,null,null,null,null,null,null,null,null,null,null,null,null," ",null,null,null,null,null,null,null,null,null,null,null,null,null,null,null,null,null," "]
[58,null,null,null,null,null,null,"SHASTA","CA","96001",null,null,null,null,"",null,null,null,null,null,null,null,null,null,null,null,null,null,null,null," ",null,null,null,null,null,null,null,null,null,null,null,null,null,null,null,null,null," "]
[59,null,null,null,null,null,null,"SHASTA","CA","96001",null,null,null,null,"",null,null,null,null,null,null,null,null,null,null,null,null,null,null,null," ",null,null,null,null,null,null,null,null,null,null,null,null,null,null,null,null,null," "]
[60,null,null,null,null,null,null,"SHASTA","CA","96001",null,null,null,null,"",null,null,null,null,null,null,null,null,null,null,null,null,null,null,null," ",null,null,null,null,null,null,null,null,null,null,null,null,null,null,null,null,null," "]
[61,null,null,null,null,null,null,"SHASTA","CA","96001",null,null,null,null,"",null,null,null,null,null,null,null,null,null,null,null,null,null,null,null," ",null,null,null,null,null,null,null,null,null,null,null,null,null,null,null,null,null," "]
[62,null,null,null,null,null,null,"SHASTA","CA","96001",null,null,null,null,"",null,null,null,null,null,null,null,null,null,null,null,null,null,null,null," ",null,null,null,null,null,null,null,null,null,null,null,null,null,null,null,null,null," "]
[63,null,null,null,null,null,null,"SHASTA","CA","96001",null,null,null,null,"",null,null,null,null,null,null,null,null,null,null,null,null,null,null,null," ",null,null,null,null,null,null,null,null,null,null,null,null,null,null,null,null,null," "]
[64,null,null,null,null,null,null,"SHASTA","CA","96001",null,null,null,null,"",null,null,null,null,null,null,null,null,null,null,null,null,null,null,null," ",null,null,null,null,null,null,null,null,null,null,null,null,null,null,null,null,null," "]
[65,null,null,null,null,null,null,"SHASTA","CA","96001",null,null,null,null,"",null,null,null,null,null,null,null,null,null,null,null,null,null,null,null," ",null,null,null,null,null,null,null,null,null,null,null,null,null,null,null,null,null," "]
[66,null,null,null,null,null,null,"SHASTA","CA","96003",null,null,null,null,{"$f":"IF(COUNT(P72,S72,V72,Y72,AB72)=0,\"\",COUNT(P72,S72,V72,Y72,AB72))","v":""},null,null,null,null,null,null,null,null,null,null,null,null,null,null,null,{"$f":"IF(AG72=0,\" \",AG72)","v":" "},null,null,null,null,null,null,null,null,null,null,null,null,null,null,null,null,null,{"$f":"IF(AT72=0,\" \",AT72)","v":" "}]
[67,null,null,null,null,null,null,"SHASTA","CA","96073",null,null,null,null,"",null,null,null,null,null,null,null,null,null,null,null,null,null,null,null," ",null,null,null,null,null,null,null,null,null,null,null,null,null,null,null,null,null," "]
[68,null,null,null,null,null,null,"SHASTA","CA","96001",null,null,null,null,"",null,null,null,null,null,null,null,null,null,null,null,null,null,null,null," ",null,null,null,null,null,null,null,null,null,null,null,null,null,null,null,null,null," "]
[69,null,null,null,null,null,null,"SHASTA","CA","96007",null,null,null,null,"",null,null,null,null,null,null,null,null,null,null,null,null,null,null,null," ",null,null,null,null,null,null,null,null,null,null,null,null,null,null,null,null,null," "]
[70,null,null,null,null,null,null,"SHASTA","CA","96002",null,null,null,null,"",null,null,null,null,null,null,null,null,null,null,null,null,null,null,null," ",null,null,null,null,null,null,null,null,null,null,null,null,null,null,null,null,null," "]
[71,null,null,null,null,null,null,"SHASTA","CA","96013",null,null,null,null,"",null,null,null,null,null,null,null,null,null,null,null,null,null,null,null," ",null,null,null,null,null,null,null,null,null,null,null,null,null,null,null,null,null," "]
[72,null,null,null,null,null,null,"SHASTA","CA","96001",null,null,null,null,"",null,null,null,null,null,null,null,null,null,null,null,null,null,null,null," ",null,null,null,null,null,null,null,null,null,null,null,null,null,null,null,null,null," "]
[73,null,null,null,null,null,null,"SHASTA","CA","96001",null,null,null,null,"",null,null,null,null,null,null,null,null,null,null,null,null,null,null,null," ",null,null,null,null,null,null,null,null,null,null,null,null,null,null,null,null,null," "]
[74,null,null,null,null,null,null,"SHASTA","CA","96001",null,null,null,null,"",null,null,null,null,null,null,null,null,null,null,null,null,null,null,null," ",null,null,null,null,null,null,null,null,null,null,null,null,null,null,null,null,null," "]
[75,null,null,null,null,null,null,"SHASTA","CA","96001",null,null,null,null,"",null,null,null,null,null,null,null,null,null,null,null,null,null,null,null," ",null,null,null,null,null,null,null,null,null,null,null,null,null,null,null,null,null," "]
[76,null,null,null,null,null,null,"SHASTA","ID","83201",null,null,null,null,"",null,null,null,null,null,null,null,null,null,null,null,null,null,null,null," ",null,null,null,null,null,null,null,null,null,null,null,null,null,null,null,null,null," "]
[77,null,null,null,null,null,null,"SHASTA","CA","96084",null,null,null,null,"",null,null,null,null,null,null,null,null,null,null,null,null,null,null,null," ",null,null,null,null,null,null,null,null,null,null,null,null,null,null,null,null,null," "]
[78,null,null,null,null,null,null,"SHASTA","CA","96001",null,null,null,null,"",null,null,null,null,null,null,null,null,null,null,null,null,null,null,null," ",null,null,null,null,null,null,null,null,null,null,null,null,null,null,null,null,null," "]
[79,null,null,null,null,null,null,"SHASTA","CA","96002",null,null,null,null,"",null,null,null,null,null,null,null,null,null,null,null,null,null,null,null," ",null,null,null,null,null,null,null,null,null,null,null,null,null,null,null,null,null," "]
[80,null,null,null,null,null,null,"SHASTA","CA","96001",null,null,null,null,"",null,null,null,null,null,null,null,null,null,null,null,null,null,null,null," ",null,null,null,null,null,null,null,null,null,null,null,null,null,null,null,null,null," "]
[81,null,null,null,null,null,null,"SHASTA","CA","96002",null,null,null,null,"",null,null,null,null,null,null,null,null,null,null,null,null,null,null,null," ",null,null,null,null,null,null,null,null,null,null,null,null,null,null,null,null,null," "]
[82,null,null,null,null,null,null,"SHASTA","CA","96001",null,null,null,null,"",null,null,null,null,null,null,null,null,null,null,null,null,null,null,null," ",null,null,null,null,null,null,null,null,null,null,null,null,null,null,null,null,null," "]
[83,null,null,null,null,null,null,"SHASTA","CA","96001",null,null,null,null,"",null,null,null,null,null,null,null,null,null,null,null,null,null,null,null," ",null,null,null,null,null,null,null,null,null,null,null,null,null,null,null,null,null," "]
[84,null,null,null,null,null,null,"SHASTA","CA","96001",null,null,null,null,"",null,null,null,null,null,null,null,null,null,null,null,null,null,null,null," ",null,null,null,null,null,null,null,null,null,null,null,null,null,null,null,null,null," "]
[85,null,null,null,null,null,null,"SHASTA","CA","96001",null,null,null,null,"",null,null,null,null,null,null,null,null,null,null,null,null,null,null,null," ",null,null,null,null,null,null,null,null,null,null,null,null,null,null,null,null,null," "]
[86,null,null,null,null,null,null,"SHASTA","CA","96002",null,null,null,null,"",null,null,null,null,null,null,null,null,null,null,null,null,null,null,null," ",null,null,null,null,null,null,null,null,null,null,null,null,null,null,null,null,null," "]
[87,null,null,null,null,null,null,"SHASTA","CA","96002",null,null,null,null,"",null,null,null,null,null,null,null,null,null,null,null,null,null,null,null," ",null,null,null,null,null,null,null,null,null,null,null,null,null,null,null,null,null," "]
[88,null,null,null,null,null,null,"SHASTA","CA","96002",null,null,null,null,"",null,null,null,null,null,null,null,null,null,null,null,null,null,null,null," ",null,null,null,null,null,null,null,null,null,null,null,null,null,null,null,null,null," "]
[89,null,null,null,null,null,null,"SHASTA","CA","96001",null,null,null,null,"",null,null,null,null,null,null,null,null,null,null,null,null,null,null,null," ",null,null,null,null,null,null,null,null,null,null,null,null,null,null,null,null,null," "]
[90,null,null,null,null,null,null,"SHASTA","CA","96001",null,null,null,null,"",null,null,null,null,null,null,null,null,null,null,null,null,null,null,null," ",null,null,null,null,null,null,null,null,null,null,null,null,null,null,null,null,null," "]
[91,null,null,null,null,null,null,"SHASTA","CA","96001",null,null,null,null,"",null,null,null,null,null,null,null,null,null,null,null,null,null,null,null," ",null,null,null,null,null,null,null,null,null,null,null,null,null,null,null,null,null," "]
[92,null,null,null,null,null,null,"SHASTA","CA","96001",null,null,null,null,"",null,null,null,null,null,null,null,null,null,null,null,null,null,null,null," ",null,null,null,null,null,null,null,null,null,null,null,null,null,null,null,null,null," "]
[93,null,null,null,null,null,null,"SHASTA","CA","96019",null,null,null,null,"",null,null,null,null,null,null,null,null,null,null,null,null,null,null,null," ",null,null,null,null,null,null,null,null,null,null,null,null,null,null,null,null,null," "]
[94,null,null,null,null,null,null,"SHASTA","CA","96002",null,null,null,null,"",null,null,null,null,null,null,null,null,null,null,null,null,null,null,null," ",null,null,null,null,null,null,null,null,null,null,null,null,null,null,null,null,null," "]
[95,null,null,null,null,null,null,"SHASTA","CA","96001",null,null,null,null,"",null,null,null,null,null,null,null,null,null,null,null,null,null,null,null," ",null,null,null,null,null,null,null,null,null,null,null,null,null,null,null,null,null," "]
[96,null,null,null,null,null,null,"SHASTA","CA","96001",null,null,null,null,"",null,null,null,null,null,null,null,null,null,null,null,null,null,null,null," ",null,null,null,null,null,null,null,null,null,null,null,null,null,null,null,null,null," "]
[97,null,null,null,null,null,null,"SHASTA","CA","96001",null,null,null,null,"",null,null,null,null,null,null,null,null,null,null,null,null,null,null,null," ",null,null,null,null,null,null,null,null,null,null,null,null,null,null,null,null,null," "]
[98,null,null,null,null,null,null,"SHASTA","CA","96003",null,null,null,null,"",null,null,null,null,null,null,null,null,null,null,null,null,null,null,null," ",null,null,null,null,null,null,null,null,null,null,null,null,null,null,null,null,null," "]
[99,null,null,null,null,null,null,"SHASTA","CA","96019",null,null,null,null,"",null,null,null,null,null,null,null,null,null,null,null,null,null,null,null," ",null,null,null,null,null,null,null,null,null,null,null,null,null,null,null,null,null," "]
[100,null,null,null,null,null,null,"SHASTA","CA","96002",null,null,null,null,"",null,null,null,null,null,null,null,null,null,null,null,null,null,null,null," ",null,null,null,null,null,null,null,null,null,null,null,null,null,null,null,null,null," "]
[101,null,null,null,null,null,null,"SHASTA","CA","96001",null,null,null,null,"",null,null,null,null,null,null,null,null,null,null,null,null,null,null,null," ",null,null,null,null,null,null,null,null,null,null,null,null,null,null,null,null,null," "]
[102,null,null,null,null,null,null,"SHASTA","CA","96001",null,null,null,null,"",null,null,null,null,null,null,null,null,null,null,null,null,null,null,null," ",null,null,null,null,null,null,null,null,null,null,null,null,null,null,null,null,null," "]
[103,null,null,null,null,null,null,"SHASTA","CA","96001",null,null,null,null,"",null,null,null,null,null,null,null,null,null,null,null,null,null,null,null," ",null,null,null,null,null,null,null,null,null,null,null,null,null,null,null,null,null," "]
[104,null,null,null,null,null,null,"SHASTA","CA","96001",null,null,null,null,"",null,null,null,null,null,null,null,null,null,null,null,null,null,null,null," ",null,null,null,null,null,null,null,null,null,null,null,null,null,null,null,null,null," "]
[105,null,null,null,null,null,null,"SHASTA","CA","95422",null,null,null,null,"",null,null,null,null,null,null,null,null,null,null,null,null,null,null,null," ",null,null,null,null,null,null,null,null,null,null,null,null,null,null,null,null,null," "]
["Please Add Providers NOT on the list below"]
[106,null,null,null,null,null,null,null,null,null,null,null,null,null,"",null,null,null,null,null,null,null,null,null,null,null,null,null,null,null," ",null,null,null,null,null,null,null,null,null,null,null,null,null,null,null,null,null," "]
[107,null,null,null,null,null,null,null,null,null,null,null,null,null,"",null,null,null,null,null,null,null,null,null,null,null,null,null,null,null," ",null,null,null,null,null,null,null,null,null,null,null,null,null,null,null,null,null," "]
[108,null,null,null,null,null,null,null,null,null,null,null,null,null,"",null,null,null,null,null,null,null,null,null,null,null,null,null,null,null," ",null,null,null,null,null,null,null,null,null,null,null,null,null,null,null,null,null," "]
[109,null,null,null,null,null,null,null,null,null,null,null,null,null,"",null,null,null,null,null,null,null,null,null,null,null,null,null,null,null," ",null,null,null,null,null,null,null,null,null,null,null,null,null,null,null,null,null," "]
[110,null,null,null,null,null,null,null,null,null,null,null,null,null,"",null,null,null,null,null,null,null,null,null,null,null,null,null,null,null," ",null,null,null,null,null,null,null,null,null,null,null,null,null,null,null,null,null," "]
[111,null,null,null,null,null,null,null,null,null,null,null,null,null,"",null,null,null,null,null,null,null,null,null,null,null,null,null,null,null," ",null,null,null,null,null,null,null,null,null,null,null,null,null,null,null,null,null," "]
[112,null,null,null,null,null,null,null,null,null,null,null,null,null,"",null,null,null,null,null,null,null,null,null,null,null,null,null,null,null," ",null,null,null,null,null,null,null,null,null,null,null,null,null,null,null,null,null," "]
[113,null,null,null,null,null,null,null,null,null,null,null,null,null,"",null,null,null,null,null,null,null,null,null,null,null,null,null,null,null," ",null,null,null,null,null,null,null,null,null,null,null,null,null,null,null,null,null," "]
[114,null,null,null,null,null,null,null,null,null,null,null,null,null,"",null,null,null,null,null,null,null,null,null,null,null,null,null,null,null," ",null,null,null,null,null,null,null,null,null,null,null,null,null,null,null,null,null," "]
[115,null,null,null,null,null,null,null,null,null,null,null,null,null,"",null,null,null,null,null,null,null,null,null,null,null,null,null,null,null," ",null,null,null,null,null,null,null,null,null,null,null,null,null,null,null,null,null," "]
[116,null,null,null,null,null,null,null,null,null,null,null,null,null,"",null,null,null,null,null,null,null,null,null,null,null,null,null,null,null," ",null,null,null,null,null,null,null,null,null,null,null,null,null,null,null,null,null," "]
[117,null,null,null,null,null,null,null,null,null,null,null,null,null,"",null,null,null,null,null,null,null,null,null,null,null,null,null,null,null," ",null,null,null,null,null,null,null,null,null,null,null,null,null,null,null,null,null," "]
[118,null,null,null,null,null,null,null,null,null,null,null,null,null,"",null,null,null,null,null,null,null,null,null,null,null,null,null,null,null," ",null,null,null,null,null,null,null,null,null,null,null,null,null,null,null,null,null," "]
[119,null,null,null,null,null,null,null,null,null,null,null,null,null,"",null,null,null,null,null,null,null,null,null,null,null,null,null,null,null," ",null,null,null,null,null,null,null,null,null,null,null,null,null,null,null,null,null," "]
[120,null,null,null,null,null,null,null,null,null,null,null,null,null,"",null,null,null,null,null,null,null,null,null,null,null,null,null,null,null," ",null,null,null,null,null,null,null,null,null,null,null,null,null,null,null,null,null," "]
[121,null,null,null,null,null,null,null,null,null,null,null,null,null,"",null,null,null,null,null,null,null,null,null,null,null,null,null,null,null," ",null,null,null,null,null,null,null,null,null,null,null,null,null,null,null,null,null," "]
[122,null,null,null,null,null,null,null,null,null,null,null,null,null,"",null,null,null,null,null,null,null,null,null,null,null,null,null,null,null," ",null,null,null,null,null,null,null,null,null,null,null,null,null,null,null,null,null," "]
[123,null,null,null,null,null,null,null,null,null,null,null,null,null,"",null,null,null,null,null,null,null,null,null,null,null,null,null,null,null," ",null,null,null,null,null,null,null,null,null,null,null,null,null,null,null,null,null," "]
[124,null,null,null,null,null,null,null,null,null,null,null,null,null,"",null,null,null,null,null,null,null,null,null,null,null,null,null,null,null," ",null,null,null,null,null,null,null,null,null,null,null,null,null,null,null,null,null," "]
[125,null,null,null,null,null,null,null,null,null,null,null,null,null,"",null,null,null,null,null,null,null,null,null,null,null,null,null,null,null," ",null,null,null,null,null,null,null,null,null,null,null,null,null,null,null,null,null," "]
[126,null,null,null,null,null,null,null,null,null,null,null,null,null,"",null,null,null,null,null,null,null,null,null,null,null,null,null,null,null," ",null,null,null,null,null,null,null,null,null,null,null,null,null,null,null,null,null," "]
[127,null,null,null,null,null,null,null,null,null,null,null,null,null,"",null,null,null,null,null,null,null,null,null,null,null,null,null,null,null," ",null,null,null,null,null,null,null,null,null,null,null,null,null,null,null,null,null," "]
[128,null,null,null,null,null,null,null,null,null,null,null,null,null,"",null,null,null,null,null,null,null,null,null,null,null,null,null,null,null," ",null,null,null,null,null,null,null,null,null,null,null,null,null,null,null,null,null," "]
[129,null,null,null,null,null,null,null,null,null,null,null,null,null,{"$f":"IF(COUNT(P136,S136,V136,Y136,AB136)=0,\"\",COUNT(P136,S136,V136,Y136,AB136))","v":""},null,null,null,null,null,null,null,null,null,null,null,null,null,null,null,{"$f":"IF(AG136=0,\" \",AG136)","v":" "},null,null,null,null,null,null,null,null,null,null,null,null,null,null,null,null,null,{"$f":"IF(AT136=0,\" \",AT136)","v":" "}]
[130,null,null,null,null,null,null,null,null,null,null,null,null,null,"",null,null,null,null,null,null,null,null,null,null,null,null,null,null,null," ",null,null,null,null,null,null,null,null,null,null,null,null,null,null,null,null,null," "]
[131,null,null,null,null,null,null,null,null,null,null,null,null,null,"",null,null,null,null,null,null,null,null,null,null,null,null,null,null,null," ",null,null,null,null,null,null,null,null,null,null,null,null,null,null,null,null,null," "]
[132,null,null,null,null,null,null,null,null,null,null,null,null,null,"",null,null,null,null,null,null,null,null,null,null,null,null,null,null,null," ",null,null,null,null,null,null,null,null,null,null,null,null,null,null,null,null,null," "]
[133,null,null,null,null,null,null,null,null,null,null,null,null,null,"",null,null,null,null,null,null,null,null,null,null,null,null,null,null,null," ",null,null,null,null,null,null,null,null,null,null,null,null,null,null,null,null,null," "]
[134,null,null,null,null,null,null,null,null,null,null,null,null,null,"",null,null,null,null,null,null,null,null,null,null,null,null,null,null,null," ",null,null,null,null,null,null,null,null,null,null,null,null,null,null,null,null,null," "]
[135,null,null,null,null,null,null,null,null,null,null,null,null,null,"",null,null,null,null,null,null,null,null,null,null,null,null,null,null,null," ",null,null,null,null,null,null,null,null,null,null,null,null,null,null,null,null,null," "]
[136,null,null,null,null,null,null,null,null,null,null,null,null,null,"",null,null,null,null,null,null,null,null,null,null,null,null,null,null,null," ",null,null,null,null,null,null,null,null,null,null,null,null,null,null,null,null,null," "]
[137,null,null,null,null,null,null,null,null,null,null,null,null,null,"",null,null,null,null,null,null,null,null,null,null,null,null,null,null,null," ",null,null,null,null,null,null,null,null,null,null,null,null,null,null,null,null,null," "]
[138,null,null,null,null,null,null,null,null,null,null,null,null,null,"",null,null,null,null,null,null,null,null,null,null,null,null,null,null,null," ",null,null,null,null,null,null,null,null,null,null,null,null,null,null,null,null,null," "]
[139,null,null,null,null,null,null,null,null,null,null,null,null,null,"",null,null,null,null,null,null,null,null,null,null,null,null,null,null,null," ",null,null,null,null,null,null,null,null,null,null,null,null,null,null,null,null,null," "]
[140,null,null,null,null,null,null,null,null,null,null,null,null,null,"",null,null,null,null,null,null,null,null,null,null,null,null,null,null,null," ",null,null,null,null,null,null,null,null,null,null,null,null,null,null,null,null,null," "]
[141,null,null,null,null,null,null,null,null,null,null,null,null,null,"",null,null,null,null,null,null,null,null,null,null,null,null,null,null,null," ",null,null,null,null,null,null,null,null,null,null,null,null,null,null,null,null,null," "]
[142,null,null,null,null,null,null,null,null,null,null,null,null,null,"",null,null,null,null,null,null,null,null,null,null,null,null,null,null,null," ",null,null,null,null,null,null,null,null,null,null,null,null,null,null,null,null,null," "]
[143,null,null,null,null,null,null,null,null,null,null,null,null,null,"",null,null,null,null,null,null,null,null,null,null,null,null,null,null,null," ",null,null,null,null,null,null,null,null,null,null,null,null,null,null,null,null,null," "]
[144,null,null,null,null,null,null,null,null,null,null,null,null,null,"",null,null,null,null,null,null,null,null,null,null,null,null,null,null,null," ",null,null,null,null,null,null,null,null,null,null,null,null,null,null,null,null,null," "]
[145,null,null,null,null,null,null,null,null,null,null,null,null,null,"",null,null,null,null,null,null,null,null,null,null,null,null,null,null,null," ",null,null,null,null,null,null,null,null,null,null,null,null,null,null,null,null,null," "]
[146,null,null,null,null,null,null,null,null,null,null,null,null,null,"",null,null,null,null,null,null,null,null,null,null,null,null,null,null,null," ",null,null,null,null,null,null,null,null,null,null,null,null,null,null,null,null,null," "]
[147,null,null,null,null,null,null,null,null,null,null,null,null,null,"",null,null,null,null,null,null,null,null,null,null,null,null,null,null,null," ",null,null,null,null,null,null,null,null,null,null,null,null,null,null,null,null,null," "]
[148,null,null,null,null,null,null,null,null,null,null,null,null,null,"",null,null,null,null,null,null,null,null,null,null,null,null,null,null,null," ",null,null,null,null,null,null,null,null,null,null,null,null,null,null,null,null,null," "]
[149,null,null,null,null,null,null,null,null,null,null,null,null,null,"",null,null,null,null,null,null,null,null,null,null,null,null,null,null,null," ",null,null,null,null,null,null,null,null,null,null,null,null,null,null,null,null,null," "]
[150,null,null,null,null,null,null,null,null,null,null,null,null,null,"",null,null,null,null,null,null,null,null,null,null,null,null,null,null,null," ",null,null,null,null,null,null,null,null,null,null,null,null,null,null,null,null,null," "]
[151,null,null,null,null,null,null,null,null,null,null,null,null,null,"",null,null,null,null,null,null,null,null,null,null,null,null,null,null,null," ",null,null,null,null,null,null,null,null,null,null,null,null,null,null,null,null,null," "]
[152,null,null,null,null,null,null,null,null,null,null,null,null,null,"",null,null,null,null,null,null,null,null,null,null,null,null,null,null,null," ",null,null,null,null,null,null,null,null,null,null,null,null,null,null,null,null,null," "]
[153,null,null,null,null,null,null,null,null,null,null,null,null,null,"",null,null,null,null,null,null,null,null,null,null,null,null,null,null,null," ",null,null,null,null,null,null,null,null,null,null,null,null,null,null,null,null,null," "]
[154,null,null,null,null,null,null,null,null,null,null,null,null,null,"",null,null,null,null,null,null,null,null,null,null,null,null,null,null,null," ",null,null,null,null,null,null,null,null,null,null,null,null,null,null,null,null,null," "]
[155,null,null,null,null,null,null,null,null,null,null,null,null,null,"",null,null,null,null,null,null,null,null,null,null,null,null,null,null,null," ",null,null,null,null,null,null,null,null,null,null,null,null,null,null,null,null,null," "]
[156,null,null,null,null,null,null,null,null,null,null,null,null,null,"",null,null,null,null,null,null,null,null,null,null,null,null,null,null,null," ",null,null,null,null,null,null,null,null,null,null,null,null,null,null,null,null,null," "]
[157,null,null,null,null,null,null,null,null,null,null,null,null,null,"",null,null,null,null,null,null,null,null,null,null,null,null,null,null,null," ",null,null,null,null,null,null,null,null,null,null,null,null,null,null,null,null,null," "]
[158,null,null,null,null,null,null,null,null,null,null,null,null,null,"",null,null,null,null,null,null,null,null,null,null,null,null,null,null,null," ",null,null,null,null,null,null,null,null,null,null,null,null,null,null,null,null,null," "]
[159,null,null,null,null,null,null,null,null,null,null,null,null,null,"",null,null,null,null,null,null,null,null,null,null,null,null,null,null,null," ",null,null,null,null,null,null,null,null,null,null,null,null,null,null,null,null,null," "]
[160,null,null,null,null,null,null,null,null,null,null,null,null,null,"",null,null,null,null,null,null,null,null,null,null,null,null,null,null,null," ",null,null,null,null,null,null,null,null,null,null,null,null,null,null,null,null,null," "]
[161,null,null,null,null,null,null,null,null,null,null,null,null,null,"",null,null,null,null,null,null,null,null,null,null,null,null,null,null,null," ",null,null,null,null,null,null,null,null,null,null,null,null,null,null,null,null,null," "]
[162,null,null,null,null,null,null,null,null,null,null,null,null,null,"",null,null,null,null,null,null,null,null,null,null,null,null,null,null,null," ",null,null,null,null,null,null,null,null,null,null,null,null,null,null,null,null,null," "]
[163,null,null,null,null,null,null,null,null,null,null,null,null,null,"",null,null,null,null,null,null,null,null,null,null,null,null,null,null,null," ",null,null,null,null,null,null,null,null,null,null,null,null,null,null,null,null,null," "]
[164,null,null,null,null,null,null,null,null,null,null,null,null,null,"",null,null,null,null,null,null,null,null,null,null,null,null,null,null,null," ",null,null,null,null,null,null,null,null,null,null,null,null,null,null,null,null,null," "]
[165,null,null,null,null,null,null,null,null,null,null,null,null,null,"",null,null,null,null,null,null,null,null,null,null,null,null,null,null,null," ",null,null,null,null,null,null,null,null,null,null,null,null,null,null,null,null,null," "]
[166,null,null,null,null,null,null,null,null,null,null,null,null,null,"",null,null,null,null,null,null,null,null,null,null,null,null,null,null,null," ",null,null,null,null,null,null,null,null,null,null,null,null,null,null,null,null,null," "]
[167,null,null,null,null,null,null,null,null,null,null,null,null,null,"",null,null,null,null,null,null,null,null,null,null,null,null,null,null,null," ",null,null,null,null,null,null,null,null,null,null,null,null,null,null,null,null,null," "]
[168,null,null,null,null,null,null,null,null,null,null,null,null,null,"",null,null,null,null,null,null,null,null,null,null,null,null,null,null,null," ",null,null,null,null,null,null,null,null,null,null,null,null,null,null,null,null,null," "]

{"sheet":"Response Fields","index":2,"n_rows":6,"n_cols":4,"rows_kept":6,"cut":false,"hidden":true,"merged":[]}
["telephone","phone - no answer","Yes","Ivan Petrzelka"]
["email","phone - left voicemail","No","Greg Greenberg"]
["text","phone - spoke to non-provider",null,"Tom Andrews"]
["in-person visit","phone - spoke to provider",null,"Christy Porter"]
[null,"email - no response"]
[null,"email - response"]